Cogmind - Beta 10.2 @@@ ROGUE MODE // 2022.02.17 @ 11:11:24 Player: Conner Result: Self-destructed Performance ------------- Evolutions (0) 0 Regions Visited (4) 800 Robots Destroyed (6) 30 Value Destroyed (121) 121 Prototype IDs (23) 460 Alien Tech Used (0) 0 Bonus (300) 300 TOTAL SCORE: 1711 Bonus ------- Aligned with FarCom 300 Cogmind --------- Core Integrity 76/250 Matter 275/300 Energy 36/100 System Corruption 0% Temperature Cool (0) Movement Rolling (90) Ox1 Location -9/Mines Parts ------- > --- POWER (1) -------- (None) > --- PROPULSION (2) --- Wheel > --- UTILITY (2) ------ Improved Heat Sink Large Storage Unit > --- WEAPON (2) ------- Heavy EM Pulse Gun > --- INVENTORY (10) --- Field Lobotomy Kit Deploy-a-Sentry Deploy-a-Sentry Deploy-a-Sentry Peak State ------------ > --- POWER ------------ Light Ion Engine > --- PROPULSION ------- Wheel Compact Wheel > --- UTILITY ---------- Improved Heat Sink 0b10 Alert Chip > --- WEAPON ----------- Heavy EM Pulse Gun Field Lobotomy Kit > --- INVENTORY -------- Light Ion Engine EM Pulse Gun Heavy EM Pulse Gun Assault Rifle [Rating: 24] Favorites ----------- Power Light Ion Engine Engine Light Ion Engine Propulsion Wheel Wheel Wheel Utility Improved Heat Sink Device Improved Heat Sink Storage Large Storage Unit Processor 0b10 Alert Chip Weapon Heavy EM Pulse Gun Energy Gun Heavy EM Pulse Gun Special Weapon Field Lobotomy Kit Build | -11 -10 -10 -10 -9 ------- Run | Scr Mat Min Exi Min Slots Evolved . | . . . . . Power . | . . . . . Propulsion . | . . . . . Utility . | . . . . . Weapon . | . . . . . Parts Attached 12 | 5 3 . 3 1 Power 1 | 1 . . . . Engine 1 | 1 . . . . Core . | . . . . . Reactor . | . . . . . Propulsion 2 | 2 . . . . Treads . | . . . . . Leg . | . . . . . Wheel 2 | 2 . . . . Hover . | . . . . . Flight . | . . . . . Utility 3 | . 1 . 2 . Device 1 | . 1 . . . Storage 1 | . . . 1 . Processor 1 | . . . 1 . Hackware . | . . . . . Protection . | . . . . . Artifact . | . . . . . Weapon 6 | 2 2 . 1 1 Energy Gun 5 | 2 2 . . 1 Energy Cannon . | . . . . . Ballistic Gun . | . . . . . Ballistic Cannon . | . . . . . Launcher . | . . . . . Special Weapon 1 | . . . 1 . Impact Weapon . | . . . . . Slashing Weapon . | . . . . . Piercing Weapon . | . . . . . Special Melee Weapon . | . . . . . Unidentified Prototypes . | . . . . . Parts Lost 3 | . . . . 3 Power 1 | . . . . 1 Propulsion 1 | . . . . 1 Utility . | . . . . . Weapon 1 | . . . . 1 Highest Loss Streak 3 | . . . . 3 Average Slot Usage (%) 82 | . 72 85 86 98 Engine 13 | . 14 14 14 12 Wheel 28 | . 28 28 28 28 Device 9 | . 1 14 14 14 Storage 2 | . . . 1 14 Energy Gun 23 | . 28 28 18 26 Special Weapon 4 | . . . 9 1 Naked Turns . | . . . . . Heaviest Build 31 | 6 10 10 31 31 Greatest Support 26 | 26 26 26 26 26 Greatest Overweight (x) 1 | . . . 1 1 Average Overweight (x) . | . . . . . Largest Inventory Capacity 10 | 4 4 4 10 10 Average Capacity 4 | 4 4 4 4 10 Most Carried 4 | 2 4 4 4 4 Average Carried 3 | . 3 4 3 4 Final Capacity 10 | 4 4 4 10 10 Final Carried 4 | 2 4 4 4 4 Class Distribution -------------------- 100% | Mutant Dominant Class ---------------- Mutant | -10/Materials Mutant | -10/Mines Mutant | -10/Exiles Mutant | -9/Mines Resources | -11 -10 -10 -10 -9 ----------- Run | Scr Mat Min Exi Min Matter Collected 280 | 217 48 15 . . Remotely . | . . . . . Salvage Created 164 | . 89 . . 75 Parts 13 | . 6 . . 7 Haulers Intercepted . | . . . . . Recyclers Shooed . | . . . . . Parts Field Recycled . | . . . . . Retrieved Matter . | . . . . . Parts Self-Destructed . | . . . . . Prevented . | . . . . . Kills | -11 -10 -10 -10 -9 ------- Run | Scr Mat Min Exi Min Combat Hostiles Destroyed 7 | . 2 . . 5 Guns 5 | . 2 . . 3 AOE 2 | . . . . 2 Classes Destroyed 3 | . 1 . . 2 Swarmer 4 | . . . . 4 Grunt 2 | . 2 . . . Assembled 1 | . . . . 1 Best Kill Streak 4 | . 2 . . 4 Combat Bots Only 4 | . 2 . . 4 Max Kills in Single Turn 2 | . 1 . . 2 Gunslinging . | . . . . . Exploded 2 | . . . . 2 Melee . | . . . . . Uniques/NPCs Destroyed . | . . . . . Combat | -11 -10 -10 -10 -9 -------- Run | Scr Mat Min Exi Min Damage Taken 456 | . 16 66 . 374 Core 174 | . 16 32 . 126 Absorbed by Shields . | . . . . . Core Remaining (%) 100 | 100 . . . . Volleys Fired 12 | . 3 1 . 8 Largest 2 | . 2 2 . 2 Hottest 90 | . 90 90 . 90 Shots Fired 23 | . 6 2 . 15 Gun 22 | . 6 2 . 14 Cannon . | . . . . . Launcher . | . . . . . Special 1 | . . . . 1 Kinetic . | . . . . . Thermal . | . . . . . Explosive . | . . . . . Electromagnetic 22 | . 6 2 . 14 Robot Hit Streak 5 | . 4 5 . 2 Robot Miss Streak 1 | . . 1 . 1 Penetration Max . | . . . . . Secondary Targets . | . . . . . Shots Hit Robots 13 | . 4 1 . 8 Core Hits 10 | . 3 . . 7 Critical Hits . | . . . . . Critical Kills . | . . . . . Critical Parts Destroyed . | . . . . . Melee Attacks . | . . . . . Impact . | . . . . . Slashing . | . . . . . Piercing . | . . . . . Sneak Attacks . | . . . . . Combat Hostiles . | . . . . . Follow-up Attacks . | . . . . . Damage Inflicted 280 | . 63 15 . 202 Guns 192 | . 63 15 . 114 Cannons . | . . . . . Explosions 88 | . . . . 88 Melee . | . . . . . Ramming . | . . . . . Kinetic . | . . . . . Thermal 88 | . . . . 88 Explosive . | . . . . . Electromagnetic 192 | . 63 15 . 114 Impact . | . . . . . Slashing . | . . . . . Piercing . | . . . . . Highest Corruption . | . . . . . Average Corruption . | . . . . . Corruption Purged . | . . . . . Overload Shots . | . . . . . Overflow Damage 12 | . . . . 12 Projectiles . | . . . . . Explosions 12 | . . . . 12 Melee . | . . . . . Knockbacks . | . . . . . Impact . | . . . . . Kinetic . | . . . . . Secondary . | . . . . . Self-Inflicted Damage . | . . . . . Shots . | . . . . . Rammed . | . . . . . Targets Rammed . | . . . . . Kicked . | . . . . . Crushed . | . . . . . Highest Temperature 99 | . 99 . . 26 Average Temperature 49 | . 57 . . 20 Received Heat Transfer 45 | . 9 36 . . Siege Activations . | . . . . . Robots Corrupted . | . . . . . Combat Hostiles . | . . . . . Parts Fried . | . . . . . Impact Corruptions . | . . . . . Robots Melted . | . . . . . Combat Hostiles . | . . . . . Parts Melted . | . . . . . Heat Transferred 150 | . . . . 150 Parts Sabotaged . | . . . . . Parts Stolen . | . . . . . Parts Stripped . | . . . . . Power Chain Reactions 1 | . . . . 1 Missiles Intercepted . | . . . . . Alert | -11 -10 -10 -10 -9 ------- Run | Scr Mat Min Exi Min Peak Influence 90 | . 84 47 . 90 Initial 32 | . . 32 . . Average 33 | . 19 46 . 80 Maximum Alert Level . | . . . . . Low Security (%) 100 | 100 100 100 . 100 Level 1 . | . . . . . Level 2 . | . . . . . Level 3 . | . . . . . Level 4 . | . . . . . Level 5 . | . . . . . High Security . | . . . . . Max Security . | . . . . . Squads Dispatched . | . . . . . Investigation . | . . . . . Extermination . | . . . . . Reinforcement . | . . . . . Assault . | . . . . . Garrison . | . . . . . Intercept . | . . . . . Construction Impeded . | . . . . . Haulers Reinforced . | . . . . . Stealth | -11 -10 -10 -10 -9 --------- Run | Scr Mat Min Exi Min Distress Signals . | . . . . . Communications Jammed . | . . . . . Distress Signals . | . . . . . Times Spotted 18 | . 3 2 . 13 Peak Tracking Total 10 | . 2 2 . 10 Tactical Retreats 1 | . . . . 1 Traps | -11 -10 -10 -10 -9 ------- Run | Scr Mat Min Exi Min Traps Triggered . | . . . . . Indirectly . | . . . . . Trap Hack Attempts . | . . . . . Triggered . | . . . . . Disarmed . | . . . . . Reprogrammed . | . . . . . Reused . | . . . . . Traps Extracted . | . . . . . Installed . | . . . . . Triggered . | . . . . . Exploded 3 | . . . 3 . Machines | -11 -10 -10 -10 -9 ---------- Run | Scr Mat Min Exi Min Machines Disabled . | . . . . . Max in Single Turn . | . . . . . Machines Sabotaged . | . . . . . Garrisons Compromised . | . . . . . Overloaded Fab Kills . | . . . . . Fab Network Shutdowns . | . . . . . Hacking | -11 -10 -10 -10 -9 --------- Run | Scr Mat Min Exi Min Machines Accessed 3 | . 2 . 1 . Terminals 2 | . 2 . . . Fabricators . | . . . . . Repair Stations . | . . . . . Recycling Units . | . . . . . Scanalyzers . | . . . . . Garrison Access . | . . . . . Total Hacks 8 | . 7 . 1 . Successful 4 | . 3 . 1 . Failed 4 | . 4 . . . Catastrophic . | . . . . . Database Lockouts . | . . . . . Manual 8 | . 7 . 1 . Terminals 7 | . 7 . . . Fabricators . | . . . . . Repair Stations . | . . . . . Recycling Units . | . . . . . Scanalyzers . | . . . . . Garrison Access . | . . . . . Terminal Hacks 1 | . . . 1 . EX-Prototype ID Bank 1 | . . . 1 . Fabricator Hacks . | . . . . . Repair Station Hacks . | . . . . . Recycling Unit Hacks . | . . . . . Scanalyzer . | . . . . . Garrison Access Hacks . | . . . . . Unauthorized Hacks 3 | . 3 . . . Terminals 3 | . 3 . . . Botnet 2 | . 2 . . . Operators 1 | . 1 . . . Fabricators . | . . . . . Repair Stations . | . . . . . Recycling Units . | . . . . . Scanalyzers . | . . . . . Garrison Access . | . . . . . Data Cores Recovered . | . . . . . Used . | . . . . . Hacking Detections 2 | . 2 . . . Full Trace Events 1 | . 1 . . . Feedback Events . | . . . . . Feedback Blocked . | . . . . . Robot Schematics Acquired . | . . . . . Robots Built . | . . . . . Matter . | . . . . . Time . | . . . . . Total Robot Build Rating . | . . . . . Part Schematics Acquired . | . . . . . Parts Built . | . . . . . Matter . | . . . . . Time . | . . . . . Total Part Build Rating . | . . . . . Parts Repaired . | . . . . . Time . | . . . . . Parts Recycled . | . . . . . Recycled Matter . | . . . . . Retrieved Matter . | . . . . . Retrieved Components . | . . . . . Parts Scanalyzed . | . . . . . Part Schematics Acquired . | . . . . . Parts Damaged . | . . . . . Bothacking | -11 -10 -10 -10 -9 ------------ Run | Scr Mat Min Exi Min Used RIF Installer . | . . . . . Robots Hacked . | . . . . . Non-combat . | . . . . . Combat . | . . . . . Robot Hacks Applied . | . . . . . Relay Couplers Released . | . . . . . Robots Rewired . | . . . . . Allies Hacked . | . . . . . Hacks Repelled . | . . . . . Allies | -11 -10 -10 -10 -9 -------- Run | Scr Mat Min Exi Min Total Allies . | . . . . . Largest Group . | . . . . . Highest-Rated Group . | . . . . . Highest-Rated Ally . | . . . . . Total Orders . | . . . . . Ally Attacks . | . . . . . Total Damage . | . . . . . Kills . | . . . . . Allies Corrupted . | . . . . . Allies Melted . | . . . . . Intel | -11 -10 -10 -10 -9 ------- Run | Scr Mat Min Exi Min Robot Analysis Total . | . . . . . Derelict Logs Recovered . | . . . . . Drone Launches . | . . . . . Drone Recoveries . | . . . . . Exploration | -11 -10 -10 -10 -9 ------------- Run | Scr Mat Min Exi Min Turns Passed 757 | 43 256 47 318 93 Spaces Moved 602 | 39 131 49 340 43 Core 3 | 3 . . . . Treads . | . . . . . Legs . | . . . . . Wheels 599 | 36 131 49 340 43 Hover . | . . . . . Flight . | . . . . . Fastest Speed 50 | 50 90 90 90 90 Average Speed 90 | 87 90 90 90 90 Slowest Speed 100 | 100 90 90 100 100 Overloaded Moves . | . . . . . Propulsion Burnouts . | . . . . . Robots Hopped . | . . . . . Cave-ins Triggered . | . . . . . Exploration Rate (%) 23 | 3 28 13 61 11 Regions Visited 4 Branch Regions 3 Pre-discovered Areas . | . . . . . Known Exits Taken . | . . . . . Unknown Exits Taken 4 | 1 1 1 1 . Scrap Searched 1 | . . 1 . . Spaces Dug . | . . . . . Terrain Destroyed 6 | . . . . 6 Melee . | . . . . . Projectile . | . . . . . AOE 6 | . . . . 6 Terrain Rammed . | . . . . . Walls Destroyed . | . . . . . Machines Disabled . | . . . . . Actions | -11 -10 -10 -10 -9 --------- Run | Scr Mat Min Exi Min Total 786 | 45 262 49 350 80 Wait 152 | . 124 . . 28 Move 598 | 38 130 48 339 43 Hop . | . . . . . Pick Up 6 | 2 1 . 3 . Fast Attach 9 | 5 1 . 3 . Attach . | . . . . . Detach . | . . . . . Swap 3 | . 2 . . 1 Drop 6 | . 1 . 5 . Fire 12 | . 3 1 . 8 Melee . | . . . . . Ram . | . . . . . Kick . | . . . . . Crush . | . . . . . Escape Stasis . | . . . . . Rewire . | . . . . . Trap . | . . . . . Miscellaneous . | . . . . . Route ------- -11/Scrapyard -10/Materials -10/Mines -10/Exiles -9/Mines History --------- Turn | Location | Event 9 | -11/Scrapyard | Discovered new exit (range 15) 44 | -11/Scrapyard | Entered Materials 270 | -10/Materials | Discovered new exit (range 16) 300 | -10/Materials | Entered Mines 303 | -10/Mines | Build established: Mutant 342 | -10/Mines | Deemed a non-threat by the Exiles lab entrance 343 | -10/Mines | Discovered new exit (range 5) 347 | -10/Mines | Entered Exiles 369 | -10/Exiles | Met 8R-AWN 385 | -10/Exiles | Met EX-HEX 410 | -10/Exiles | Met EX-BIN 422 | -10/Exiles | Aligned with FarCom system 423 | -10/Exiles | Given EX-Vault access code 445 | -10/Exiles | Opened EX-Vault 452 | -10/Exiles | Found Field Lobotomy Kit 459 | -10/Exiles | Found 0b10 Alert Chip 481 | -10/Exiles | Warned to stay clear of 0b10 Research branches 486 | -10/Exiles | Exiles lab attacked by MAIN.C 548 | -10/Exiles | Found Deploy-a-Sentry 551 | -10/Exiles | Found Deploy-a-Sentry 553 | -10/Exiles | Found Deploy-a-Sentry 657 | -10/Exiles | Discovered new exit (range 10) 665 | -10/Exiles | Stole two prototypes: Field Lobotomy Kit, Deploy-a-Sentry 665 | -10/Exiles | Entered Mines 727 | -9/Mines | Assembled infested the area 747 | -9/Mines | Core integrity fell below 50% 758 | -9/Mines | Self-destructed Last Messages --------------- LOCATION=UNKNOWN GOAL=ESCAPE 00665_ Receiving FarCom transmissions... 00666_ ZX-C33: "That was close. Too bad in all the rush we got split up from the others." 00666_ C-30 ARC bursts open, deploying its payload. 00666_ S-10 Pest unfolds itself. 00666_ S-10 Pest destroyed. 00672_ Chain reaction triggered in Lgt. Ion Engine. 00672_ S-10 Pest destroyed. 00672_ Destroyed Flight Unit. 00672_ S-10 Pest destroyed. 00683_ ZX-C33: "Oh no, it's like what happened to the Exiles when they were wandering homeless, only there's no Warlord to save us!" 00727_ ALERT: Infestation in the mines, dispatching Demolisher response squad. 00740_ as-34533 destroyed. 00742_ Lgt. Ion Engine destroyed. 00751_ Hvy. EM Pulse Gun destroyed. 00751_ Com. Wheel destroyed. Map ----- +----------------------------------------------------+ | ?????????????????????????????? | | ?????????????????????????????? | | ?????????????????????????????? | | ?????????????????????????????? | | ?????????????????????????????? | | ?????????????????????????????? | | ?????????????????????????????? | | ?????????????????????????????? | | ?????????????????????????????? | | ?????????????????????????????? | | ?????????????????????????????? | | ?????????????????????????????? | | ?????????????????????????????? | | ?????????????????????????????? | | ?????????????????????????????? | | ?????????????????????????????? | | ?????????????????????????????? | | ?????????????????????????????? | | ???????????######????????????? | | ??###??????# #????????????? | | ?## ####### #????????????? | | ?# #????????????? | | ?# #????????????? | | ?## ####"%*==#????????????? | | ??## #??#"=%=%#????????????? | | ??## @ #??#"%%*[#????????????? | | ??# aa##??##"#""#????????????? | | ??# #??########????????????? | | ??# #### ##??????????????? | | ??# a## #??????????????? | | ??# ##?????????????? | | ?## % ####### #?????? | | ?# | | ?# ## ######??????? | | ?## """ #??#???????????? | | ??# """ ##??????????????? | | ??# """ ###???????????????? | | ??## ##?????????????????? | | ???## ##??????????????????? | | ????## ##???????????????????? | | ?????####????????????????????? | | ?????????????????????????????? | | ?????????????????????????????? | | ?????????????????????????????? | | ?????????????????????????????? | | ?????????????????????????????? | | ?????????????????????????????? | | ?????????????????????????????? | | ?????????????????????????????? | | ?????????????????????????????? | +----------------------------------------------------+ Best States ------------- Heat Dissipation 39 Energy Generation 10 Energy Capacity 125 Matter Stores 300 Matter Capacity 300 Sight Range 16 Terrain Scan Density 10 Evasion (%) 42 Item Schematics ----------------- None Robot Schematics ------------------ None Fabricated ------------ Nothing Alien Tech Used ----------------- None Achievements -------------- None Challenges ------------ None Game ------ Seed TargetMiniFirepult Manual? 0 Play Time 00:04:12 Cumulative 48.3 hours Start 2022.02.17 @ 05:22:55 End 2022.02.17 @ 11:11:24 Sessions 3 Manual Loads 0 Difficulty Rogue Special Mode None Game No. 86 Rogue 86 Adventurer 0 Explorer 0 Win Type - Total 0 Types 0/0/0/0/0/0/0/0/0 Lore% 53 Gallery% 53 Achievement% 41 Wizard Run 0 Options --------- ASCII 0 Keyboard 0 Movement Numpad Keybinds 0 Fullscreen 1 Font 24/Smallcaps Map View 76x50 Tactical HUD 1 Map Filters NONE Filters NONE Steam 1 RUN: 22bbb3e9-9489-43ec-a4ff-d01ea0291172